bitfinex-derivatives/quotes_SOLF0:USTF0_20250714
["timestamp","ask_amount","ask_price","bid_price","bid_amount"]
[1752470762551,3.39,167.79,167.67,3.29]
[1752470762755,5.21996856,167.77,167.68,3.29]
[1752470762961,5.21996856,167.73,167.68,3.29]
[1752470763259,5.21996856,167.73,167.69,3.29]
[1752470763260,3.39,167.72,167.69,3.29]
[1752470763658,3.39,167.72,167.68,3.29]
[1752470763858,5.21996856,167.72,167.68,3.29]
[1752470764060,3.39,167.71,167.68,3.29]
[1752470764457,5.21996856,167.73,167.68,3.29]
[1752470764762,3.39,167.72,167.69,3.29]
[1752470764963,3.39,167.72,167.7,3.29]
[1752470765256,3.39,167.74,167.66,5.21996856]
[1752470765563,3.39,167.74,167.71,3.29]
[1752470765871,225.45,167.76,167.7,3.29]
[1752470766262,5.9597,167.74,167.66,3.29]
[1752470766458,5.21996856,167.73,167.66,3.29]
[1752470766759,3.39,167.72,167.67,5.9617]
[1752470766963,3.39,167.72,167.68,3.29]
[1752470767161,3.39,167.72,167.69,3.29]
[1752470767364,5.21996856,167.73,167.69,3.29]
[1752470767662,222.06,167.76,167.69,3.29]
[1752470767663,3.39,167.71,167.69,3.29]
[1752470767869,222.06,167.76,167.66,3.29]
[1752470768164,3.39,167.75,167.66,3.29]
[1752470769765,5.9595,167.74,167.69,5.9612]
[1752470769965,5.9595,167.74,167.71,3.29]
[1752470770464,5.9595,167.74,167.69,5.9612]
[1752470770465,5.9595,167.74,167.72,3.29]
[1752470770865,3.39,167.72,167.7,3.29]
[1752470771058,3.39,167.72,167.66,3.29]
[1752470771260,5.9609,167.71,167.66,5.962]
[1752470771462,3.39,167.71,167.68,3.29]
[1752470772165,5.9609,167.7,167.68,3.29]
[1752470772565,9.3509,167.7,167.68,3.29]
[1752470772766,3.39,167.68,167.66,3.29]
[1752470773467,9.3512,167.7,167.67,3.29]
[1752470774067,3.39,167.72,167.64,3.29]
[1752470774961,5.9614,167.69,167.64,3.29]
[1752470775264,3.39,167.74,167.65,3.29]
[1752470775666,5.9606,167.71,167.65,3.29]
[1752470775866,3.39,167.71,167.65,3.29]
[1752470776772,3.39,167.7,167.67,3.29]
[1752470777270,3.39,167.7,167.68,3.29]
[1752470777865,3.39,167.71,167.68,3.29]
[1752470778065,5.21996856,167.73,167.68,3.29]
[1752470778066,3.39,167.7,167.68,3.29]
[1752470778970,3.39,167.71,167.69,3.29]
[1752470780173,3.39,167.7,167.62,3.29]
[1752470780877,3.39,167.7,167.65,3.29]
[1752470781074,3.39,167.7,167.62,3.29]
[1752470781467,3.39,167.73,167.65,5.21996856]
[1752470781673,3.39,167.73,167.66,3.29]
[1752470782069,3.39,167.79,167.69,3.29]
[1752470782268,3.39,167.79,167.73,3.29]
[1752470783268,5.9572,167.81,167.66,6.63000482]
[1752470783269,3.39,167.81,167.75,3.29]
[1752470783767,3.39,167.81,167.74,5.21334899]
[1752470783768,216.86,167.84,167.79,3.29]
[1752470783970,3.39,167.81,167.79,3.29]
[1752470784370,3.39,167.81,167.79,9.2477]
[1752470784568,3.39,167.83,167.8,3.29]
[1752470784775,3.39,167.83,167.77,3.29]
[1752470785077,3.39,167.82,167.79,9.2476]
[1752470785271,3.39,167.82,167.8,3.29]
[1752470785471,220.25,167.84,167.81,3.29]
[1752470785676,220.25,167.84,167.82,3.29]
[1752470785977,9.3464,167.83,167.78,3.29]
[1752470786278,3.39,167.82,167.79,3.29]
[1752470786479,216.86,167.84,167.8,5.9571]
[1752470786676,220.25,167.84,167.81,3.29]
[1752470786972,220.25,167.84,167.8,5.9571]
[1752470787172,220.25,167.84,167.82,3.29]
[1752470787880,3.39,167.83,167.8,3.29]
[1752470788574,3.39,167.83,167.78,3.29]
[1752470789077,3.39,167.83,167.77,3.29]
[1752470789781,5.957,167.81,167.77,5.9584]
[1752470789977,5.957,167.81,167.79,3.29]
[1752470790373,5.20794933,167.81,167.72,3.46]
[1752470790573,3.39,167.78,167.72,3.46]
[1752470790777,3.39,167.74,167.72,3.46]
[1752470791376,5.20794933,167.77,167.71,5.9605]
[1752470791581,5.20794933,167.77,167.73,3.46]
[1752470791874,3.39,167.74,167.71,3.46]
[1752470792081,3.39,167.74,167.72,3.46]
[1752470792878,3.39,167.82,167.71,5.20794933]
[1752470793178,23.90411672,167.83,167.65,4.95806205]
[1752470793179,3.39,167.8,167.74,3.46]
[1752470793683,9.3477,167.8,167.75,5.9589]
[1752470793880,214.16,167.81,167.76,3.46]
[1752470794083,217.55,167.81,167.78,3.46]
[1752470794282,5.9574,167.8,167.78,3.46]
[1752470794978,217.55,167.81,167.75,3.46]
[1752470795182,214.16,167.81,167.77,3.46]
[1752470795582,214.16,167.81,167.79,3.46]
[1752470795985,214.16,167.81,167.74,3.46]
[1752470795986,3.39,167.8,167.74,3.46]
[1752470796182,214.16,167.81,167.71,5.20794933]
[1752470796382,214.16,167.81,167.7,4.95806205]
[1752470796383,3.39,167.78,167.76,3.46]
[1752470796784,5.9584,167.77,167.76,3.46]
[1752470796978,3.39,167.77,167.73,3.46]
[1752470797184,3.39,167.77,167.74,3.46]
[1752470797890,3.39,167.77,167.71,5.20794933]
[1752470798084,3.39,167.77,167.74,3.46]
[1752470798285,3.39,167.76,167.7,3.46]
[1752470798985,9.3489,167.76,167.72,3.46]
[1752470799186,3.39,167.76,167.74,3.46]
[1752470799988,5.9591,167.76,167.74,3.46]
[1752470800191,3.39,167.77,167.74,3.46]
[1752470800487,3.39,167.75,167.71,3.46]
[1752470800788,3.39,167.75,167.68,3.46]
[1752470801182,3.39,167.75,167.6,15.16989102]
[1752470801183,3.39,167.77,167.7,3.46]
[1752470802085,5.9585,167.77,167.73,3.46]
[1752470802285,9.3485,167.77,167.74,3.46]
[1752470802787,214.61,167.8,167.72,3.46]
[1752470803286,3.39,167.79,167.72,3.46]
[1752470804100,3.39,167.79,167.73,5.9598]
[1752470804388,3.39,167.79,167.74,3.46]
[1752470804692,3.39,167.77,167.75,3.46]
[1752470806095,3.39,167.79,167.69,3.46]
[1752470806295,3.39,167.79,167.72,3.46]
[1752470806489,3.39,167.79,167.72,9.4201]
[1752470806896,3.39,167.79,167.72,3.46]
[1752470807095,5.9595,167.75,167.72,3.46]
[1752470807289,9.3495,167.75,167.73,3.46]
[1752470807490,3.39,167.74,167.68,3.46]
[1752470807695,3.39,167.73,167.7,3.46]
[1752470807993,3.39,167.73,167.72,3.46]
[1752470808194,5.9597,167.74,167.71,3.46]
[1752470808393,5.9597,167.74,167.72,3.46]
[1752470808598,5.9592,167.75,167.72,3.46]
[1752470808793,3.39,167.75,167.73,3.46]
[1752470808989,3.39,167.78,167.7,5.20794933]
[1752470809193,3.39,167.78,167.71,3.46]
[1752470809797,5.9588,167.76,167.72,5.96]
[1752470810101,3.39,167.77,167.74,3.46]
[1752470810299,3.39,167.76,167.74,3.46]
[1752470810700,3.39,167.75,167.74,3.46]
[1752470810898,3.39,167.75,167.71,3.46]
[1752470811106,3.39,167.76,167.69,3.46]
[1752470811300,227.16,167.8,167.69,3.46]
[1752470811301,3.39,167.74,167.69,3.46]
[1752470811606,232.36794933,167.8,167.61,9.96194169]
[1752470811607,3.39,167.72,167.67,3.46]
[1752470812603,5.20794933,167.73,167.68,3.46]
[1752470812604,5.9615,167.69,167.68,3.46]
[1752470813500,3.39,167.71,167.68,3.46]
[1752470813702,3.39,167.74,167.65,3.46]
[1752470813903,3.39,167.74,167.67,3.46]
[1752470814103,5.9602,167.72,167.69,3.46]
[1752470815006,3.39,167.74,167.66,5.20794933]
[1752470815007,3.39,167.74,167.72,3.46]
[1752470815703,5.9598,167.73,167.72,3.46]
[1752470815903,3.39,167.74,167.72,3.46]
[1752470816303,3.39,167.76,167.69,3.46]
[1752470816704,9.3491,167.76,167.73,5.9598]
[1752470816906,3.39,167.76,167.74,3.46]
[1752470817403,3.39,167.78,167.72,3.46]
[1752470818502,3.39,167.78,167.73,3.46]
[1752470818702,3.39,167.78,167.74,3.46]
[1752470819005,3.39,167.78,167.73,3.46]
[1752470819203,3.39,167.78,167.71,3.46]
[1752470819606,3.39,167.78,167.75,3.46]
[1752470819809,3.39,167.78,167.76,3.46]
[1752470820202,3.39,167.78,167.77,3.46]
[1752470820407,212.64,167.8,167.73,3.36]
[1752470820797,5.9583,167.78,167.74,5.9593]
[1752470821001,212.64,167.8,167.73,3.36]
[1752470821397,5.9581,167.78,167.76,3.36]
[1752470821798,3.38,167.78,167.76,3.36]
[1752470822404,9.3382,167.78,167.75,3.36]
[1752470822609,212.64,167.8,167.75,5.9591]
[1752470822908,212.64,167.8,167.76,3.36]
[1752470823107,209.26,167.8,167.76,3.36]
[1752470823312,3.38,167.79,167.77,3.36]
[1752470823612,9.3378,167.79,167.77,3.36]
[1752470823801,9.3378,167.79,167.78,3.36]
[1752470824606,5.9581,167.78,167.74,5.9594]
[1752470824806,9.3381,167.78,167.75,3.36]
[1752470825006,214.46794933,167.8,167.76,3.36]
[1752470825204,214.46794933,167.8,167.69,4.97994171]
[1752470825205,3.38,167.79,167.7,3.36]
[1752470825405,3.38,167.82,167.74,5.21060512]
[1752470825708,3.38,167.85,167.79,3.36]
[1752470826308,3.38,167.89,167.82,3.36]
[1752470826613,209.54,167.88,167.82,3.36]
[1752470827012,9.3355,167.86,167.83,3.36]
[1752470827213,9.3355,167.86,167.85,3.36]
[1752470827409,3.38,167.86,167.83,3.36]
[1752470827611,3.38,167.86,167.76,4.98321251]
[1752470827612,3.38,167.86,167.84,3.36]
[1752470828215,9.3353,167.86,167.85,3.36]
[1752470828406,5.9553,167.86,167.85,3.36]
[1752470828611,3.38,167.86,167.79,5.20587038]
[1752470828907,3.38,167.86,167.84,3.36]
[1752470829211,206.16,167.88,167.79,5.20587038]
[1752470829212,3.38,167.87,167.85,3.36]
[1752470829615,3.38,167.86,167.83,3.36]
[1752470829812,5.9558,167.85,167.83,3.36]
[1752470830119,9.3358,167.85,167.83,3.36]
[1752470830304,5.9558,167.85,167.82,3.36]
[1752470830509,206.16,167.88,167.82,3.36]
[1752470830817,3.38,167.87,167.82,3.36]
[1752470831008,5.9558,167.85,167.82,3.36]
[1752470831210,3.38,167.87,167.82,3.36]
[1752470831410,212.1147,167.88,167.82,5.20587038]
[1752470831610,6.03570005,167.92,167.76,4.98321251]
[1752470831611,4.9987204,167.92,167.86,5.20587038]
[1752470831810,4.9987204,167.94,167.91,3.36]
[1752470832021,5.20448776,167.92,167.83,5.20448776]
[1752470832313,3.38,167.91,167.86,9.3152]
[1752470832509,9.3335,167.91,167.87,3.36]
[1752470832714,3.38,167.92,167.87,3.36]
[1752470832914,5.9539,167.9,167.87,3.36]
[1752470833116,5.9539,167.9,167.83,5.20320666]
[1752470833117,3.38,167.91,167.88,3.36]
[1752470833411,5.9556,167.85,167.77,4.98321251]
[1752470833614,3.38,167.86,167.84,3.36]
[1752470833814,3.38,167.88,167.86,3.36]
[1752470834016,208.36,167.9,167.83,3.36]
[1752470834219,213.56320666,167.9,167.83,3.36]
[1752470834416,208.36,167.9,167.83,3.36]
[1752470834617,204.98,167.9,167.83,3.36]
[1752470834820,3.38,167.92,167.85,3.36]
[1752470835018,9.3334,167.92,167.87,3.36]
[1752470835216,3.38,167.94,167.87,3.36]
[1752470835412,208.22,167.96,167.87,3.36]
[1752470835618,5.9527,167.94,167.88,5.9545]
[1752470835811,5.20320666,167.93,167.89,3.36]
[1752470836015,3.38,167.94,167.84,3.36]
[1752470836214,3.38,167.94,167.85,5.20320666]
[1752470836410,5.20320666,167.93,167.86,3.36]
[1752470836620,204.84,167.96,167.81,3.36]
[1752470836621,5.20320666,167.88,167.81,3.36]
[1752470836817,3.38,167.85,167.82,3.36]
[1752470837023,3.38,167.85,167.76,10.18641917]
[1752470837218,5.20320666,167.88,167.78,5.20320666]
[1752470837417,3.38,167.88,167.78,5.20320666]
[1752470837720,3.38,167.91,167.83,3.36]
[1752470837919,5.20320666,167.9,167.83,3.36]
[1752470838119,5.9538,167.9,167.86,3.36]
[1752470838417,208.7,167.96,167.84,5.20320666]
[1752470838418,3.38,167.93,167.84,5.20320666]
[1752470838620,3.38,167.93,167.85,3.36]
[1752470838823,3.38,167.92,167.89,3.36]
[1752470839019,5.20320666,167.92,167.89,3.36]
[1752470839223,9.3334,167.91,167.89,3.36]
[1752470839424,3.38,167.91,167.89,3.36]
[1752470839818,5.20320666,167.93,167.88,3.36]
[1752470840023,3.38,167.92,167.9,3.36]
[1752470840225,3.38,167.92,167.85,3.36]
[1752470840427,5.9535,167.91,167.87,3.36]
[1752470840631,3.38,167.92,167.87,3.36]
[1752470840924,3.38,167.92,167.87,5.9546]
[1752470841128,3.38,167.92,167.89,3.36]
[1752470841326,3.38,167.94,167.89,3.36]
[1752470841723,3.38,167.94,167.9,3.36]
[1752470842022,3.38,167.94,167.86,5.20320666]
[1752470842226,212.08,167.96,167.89,3.36]
[1752470842619,3.38,167.95,167.89,3.36]
[1752470843017,3.38,167.95,167.8,5.20320666]
[1752470843018,3.38,167.97,167.91,3.36]
[1752470843525,5.20320666,167.93,167.88,3.36]
[1752470843716,3.38,167.91,167.85,3.36]
[1752470843920,8.58320666,167.93,167.85,3.36]
[1752470844525,3.38,167.93,167.85,3.36]
[1752470844826,3.38,167.93,167.87,3.36]
[1752470845027,3.38,167.93,167.88,3.36]
[1752470845231,5.20320666,167.91,167.82,5.20320666]
[1752470845431,3.38,167.9,167.83,5.9562]
[1752470845626,3.38,167.9,167.84,3.36]
[1752470846127,3.38,167.9,167.85,3.36]
[1752470846520,3.38,167.95,167.85,3.36]
[1752470846724,3.38,167.95,167.88,3.36]
[1752470847125,5.953,167.93,167.88,3.36]
[1752470847526,3.38,167.95,167.88,3.36]
[1752470848231,5.9527,167.94,167.9,3.36]
[1752470848726,9.3321,167.95,167.91,5.9534]
[1752470848931,9.3321,167.95,167.93,3.36]
[1752470849229,209.0,168.0,167.86,5.20320666]
[1752470849230,5.20320666,167.96,167.86,5.20320666]
[1752470849422,3.38,167.94,167.87,3.36]
[1752470849828,3.38,167.94,167.88,3.36]
[1752470851029,3.39,167.96,167.9,3.62]
[1752470851633,5.9531,167.92,167.9,3.62]
[1752470852332,5.9536,167.91,167.87,3.62]
[1752470852532,3.39,167.95,167.87,3.62]
[1752470852736,3.39,167.95,167.89,3.62]
[1752470853430,3.39,167.94,167.9,24.61]
[1752470853630,11.15660666,167.91,167.9,24.61]
[1752470853835,11.15660666,167.91,167.86,3.62]
[1752470853836,208.18,167.99,167.87,3.62]
[1752470854036,3.39,167.9,167.83,3.62]
[1752470854438,3.39,167.9,167.85,3.62]
[1752470854736,5.9548,167.88,167.85,3.62]
[1752470855036,3.39,167.92,167.85,3.62]
[1752470855234,5.20320666,167.94,167.85,3.62]
[1752470855431,5.9545,167.88,167.85,3.62]
[1752470855626,231.0787204,167.99,167.83,3.62]
[1752470855942,3.39,167.86,167.84,3.62]
[1752470856826,5.9556,167.85,167.84,3.62]
[1752470857133,5.20320666,167.85,167.82,17.55]
[1752470857339,5.9563,167.83,167.82,21.17]
[1752470857640,3.39,167.88,167.84,3.62]
[1752470857839,3.39,167.87,167.84,3.62]
[1752470858139,5.9558,167.85,167.84,3.62]
[1752470858934,17.9,167.97,167.84,3.62]
[1752470858935,5.20320666,167.9,167.84,3.62]
[1752470859139,5.20320666,167.9,167.85,3.62]
[1752470859338,3.39,167.87,167.85,3.62]
[1752470859636,5.9552,167.86,167.85,3.62]
[1752470859937,3.39,167.87,167.82,17.55]
[1752470859938,5.9563,167.83,167.82,17.55]
[1752470860141,5.9563,167.83,167.82,21.17]
[1752470861136,5.20320666,167.88,167.83,3.62]
[1752470861332,3.39,167.86,167.84,3.62]
[1752470862033,3.39,167.86,167.82,17.55]
[1752470862240,3.39,167.84,167.82,21.17]
[1752470862639,3.39,167.85,167.83,3.62]
[1752470863141,3.39,167.87,167.83,3.62]
[1752470864843,5.20320666,167.91,167.83,3.62]
[1752470865037,3.39,167.9,167.83,3.62]
[1752470865339,5.9547,167.88,167.84,5.9558]
[1752470865543,5.9547,167.88,167.85,3.62]
[1752470866044,3.39,167.89,167.86,3.62]
[1752470866342,3.39,167.89,167.87,3.62]
[1752470867344,5.20320666,167.91,167.85,3.62]
[1752470867539,3.39,167.9,167.86,3.62]
[1752470867739,3.39,167.87,167.82,23.5066]
[1752470867940,3.39,167.87,167.85,3.62]
[1752470868335,5.9552,167.86,167.85,3.62]
[1752470868537,3.39,167.86,167.82,21.17]
[1752470868743,9.3463,167.83,167.82,17.55]
[1752470869148,3.39,167.86,167.82,21.17]
[1752470869344,3.39,167.85,167.82,21.17]
[1752470869646,5.9563,167.83,167.82,21.17]
[1752470870040,3.39,167.84,167.82,21.17]
[1752470870241,3.39,167.86,167.83,3.62]
[1752470870445,3.39,167.86,167.82,17.55]
[1752470870643,3.39,167.86,167.84,3.62]
[1752470870943,3.39,167.87,167.82,17.55]
[1752470871141,3.39,167.87,167.82,21.17]
[1752470871439,5.9563,167.83,167.82,17.55]
[1752470871644,9.3463,167.83,167.82,17.55]
[1752470872046,5.957,167.81,167.8,3.62]
[1752470872244,3.39,167.83,167.79,3.62]
[1752470872441,3.39,167.85,167.79,3.62]
[1752470872639,5.9565,167.83,167.79,3.62]
[1752470872836,3.39,167.87,167.81,3.62]
[1752470873040,5.9563,167.83,167.81,3.62]
[1752470873345,3.39,167.87,167.81,3.62]
[1752470873540,3.39,167.87,167.81,9.5769]
[1752470873746,3.39,167.86,167.82,3.62]
[1752470873944,5.20320666,167.89,167.82,3.62]
[1752470874141,514.68,167.91,167.85,3.62]
[1752470874341,5.20320666,167.9,167.86,3.62]
[1752470874652,3.39,167.87,167.86,3.62]
[1752470874847,9.3449,167.87,167.86,3.62]
[1752470875044,3.39,167.9,167.86,3.62]
[1752470875242,5.9545,167.89,167.86,3.62]
[1752470875447,3.39,167.89,167.87,3.62]
[1752470875642,3.39,167.89,167.84,5.20320666]
[1752470875848,3.39,167.89,167.88,3.62]
[1752470876048,518.07,167.91,167.89,3.62]
[1752470876541,3.39,167.91,167.89,3.62]
[1752470876741,5.20320666,167.95,167.9,3.62]
[1752470876947,3.39,167.93,167.87,3.62]
[1752470877845,5.9535,167.91,167.88,3.62]
[1752470878149,3.39,167.97,167.88,3.62]
[1752470878641,5.9529,167.93,167.89,5.9539]
[1752470878841,5.9529,167.93,167.92,3.62]
[1752470879046,3.39,167.92,167.85,3.62]
[1752470879249,3.39,167.94,167.88,3.62]
[1752470879751,203.74,167.96,167.88,3.62]
[1752470879752,207.13,167.96,167.89,5.9538]
[1752470879952,207.13,167.96,167.9,3.62]
[1752470880146,3.39,167.96,167.9,3.62]
[1752470880449,3.34,167.98,167.9,3.62]
[1752470880748,3.34,167.98,167.92,3.41]
[1752470880950,5.20320666,167.96,167.87,5.9546]
[1752470881144,3.34,167.94,167.88,3.41]
[1752470881443,3.34,167.95,167.91,3.41]
[1752470882045,3.34,167.98,167.91,3.41]
[1752470882747,3.34,167.98,167.93,3.41]
[1752470882946,3.34,167.97,167.93,3.41]
[1752470883343,206.36,167.99,167.94,3.41]
[1752470884348,206.36,167.99,167.96,3.41]
[1752470884349,203.02,167.99,167.96,3.41]
[1752470884848,5.9512,167.98,167.96,3.41]
[1752470885349,5.9519,167.96,167.93,3.41]
[1752470885546,203.02,167.99,167.93,3.41]
[1752470885746,206.36,167.99,167.93,3.41]
[1752470886050,5.9519,167.96,167.93,3.41]
[1752470886548,206.36,167.99,167.93,3.41]
[1752470886744,206.36,167.99,167.94,3.41]
[1752470887152,5.9516,167.97,167.94,9.3623]
[1752470887342,203.02,167.99,167.95,3.41]
[1752470887742,4.99593505,168.05,167.86,4.97371572]
[1752470887743,4.99593505,168.05,168.01,3.41]
[1752470887946,3.34,168.06,167.99,3.41]
[1752470887947,8.33593505,168.06,167.99,3.41]
[1752470888142,3.34,168.06,167.99,3.41]
[1752470888346,5.9492,168.03,168.01,3.41]
[1752470888548,5.9492,168.03,168.02,3.41]
[1752470890254,8.54320666,168.08,168.02,3.41]
[1752470890549,3.34,168.08,168.02,3.41]
[1752470890750,5.9484,168.06,168.02,9.3595]
[1752470890953,5.9484,168.06,168.03,3.41]
[1752470891145,3.34,168.08,168.03,3.41]
[1752470891749,5.9487,168.05,168.03,3.41]
[1752470891947,3.34,168.09,168.02,3.41]
[1752470892350,5.9488,168.05,168.02,3.41]
[1752470893656,5.9485,168.05,168.02,5.9495]
[1752470893852,5.9485,168.05,168.03,3.41]
[1752470894051,3.34,168.09,168.03,3.41]
[1752470894451,5.9486,168.05,168.03,3.41]
[1752470895148,5.9488,168.04,168.03,3.41]
[1752470895556,5.20320666,168.04,167.94,3.41]
[1752470895856,5.20320666,168.04,167.95,3.41]
[1752470895857,3.34,168.03,167.95,3.41]
[1752470896048,3.34,168.08,167.98,3.41]
[1752470896254,5.9501,168.01,167.98,3.41]
[1752470896554,3.34,168.05,167.98,3.41]
[1752470896954,5.9501,168.01,167.98,3.41]
[1752470897261,3.34,168.07,167.99,3.41]
[1752470897555,201.24,168.09,167.99,3.41]
[1752470897556,3.34,168.05,167.99,3.41]
[1752470897858,5.9503,168.0,167.99,3.41]
[1752470898951,5.95,168.01,168.0,3.41]
[1752470899457,5.9509,167.99,167.98,3.41]
[1752470899656,3.34,167.99,167.96,3.41]
[1752470899848,3.34,167.99,167.93,5.20320666]
[1752470899849,3.34,168.01,167.97,3.41]
[1752470900048,5.9513,167.98,167.97,3.41]
[1752470900245,3.34,168.0,167.97,3.41]
[1752470900455,3.34,168.0,167.98,3.41]
[1752470901054,9.2907,167.99,167.98,3.41]
[1752470901359,3.34,168.0,167.98,3.41]
[1752470901554,3.34,168.03,167.94,3.41]
[1752470901754,3.34,168.05,167.98,3.41]
[1752470901952,5.20320666,168.04,167.98,3.41]
[1752470902153,5.9497,168.02,167.98,3.41]
[1752470902355,3.34,168.05,167.98,3.41]
[1752470902759,8.54320666,168.08,167.99,3.41]
[1752470903061,3.34,168.07,167.99,3.41]
[1752470903261,5.9486,168.05,168.02,3.41]
[1752470903560,3.34,168.06,167.98,3.41]
[1752470903859,206.44320666,168.09,168.02,3.41]
[1752470904062,209.78320666,168.09,168.02,3.41]
[1752470904360,209.78320666,168.09,168.05,3.41]
[1752470904361,3.34,168.08,168.05,3.41]
[1752470905061,5.9481,168.06,168.05,3.41]
[1752470906161,3.34,168.06,168.03,3.41]
[1752470906355,5.20320666,168.07,168.03,3.41]
[1752470906356,3.34,168.05,168.03,3.41]
[1752470906551,5.20320666,168.07,168.01,3.41]
[1752470906552,3.34,168.04,168.01,3.41]
[1752470906757,5.9491,168.04,168.0,5.95]
[1752470906960,5.9491,168.04,168.03,3.41]
[1752470907261,9.2886,168.05,168.03,3.41]
[1752470907464,3.34,168.05,168.04,3.41]
[1752470907958,9.2885,168.05,168.04,3.41]
[1752470908264,3.34,168.05,167.99,3.41]
[1752470909265,5.9493,168.03,168.0,3.41]
[1752470909462,201.24,168.09,167.98,3.41]
[1752470909463,5.20320666,168.04,167.98,3.41]
[1752470909662,3.34,168.03,167.98,3.41]
[1752470909858,5.20320666,168.03,167.98,3.41]
[1752470910063,3.34,168.02,167.98,3.41]
[1752470910261,3.34,167.99,167.95,3.63]
[1752470910457,3.34,167.99,167.96,3.63]
[1752470910661,5.20320666,168.01,167.96,3.63]
[1752470910870,220.17594552,168.09,167.89,6.63000482]
[1752470910871,3.37,167.98,167.92,3.63]
[1752470911262,5.9519,167.96,167.92,9.583]
[1752470911462,3.37,167.94,167.9,4.95189226]
[1752470911666,3.37,167.98,167.91,3.63]
[1752470912063,3.37,167.98,167.92,3.63]
[1752470912673,3.37,168.0,167.93,3.63]
[1752470913271,5.20320666,168.03,167.93,3.63]
[1752470913468,3.37,168.02,167.94,5.20320666]
[1752470913672,5.9499,168.01,167.94,5.20320666]
[1752470913871,3.37,168.02,167.99,3.63]
[1752470914176,3.37,168.02,168.0,3.63]
[1752470915073,5.20320666,168.05,167.94,5.20320666]
[1752470915279,3.37,168.04,167.95,3.63]
[1752470915577,5.20320666,168.05,167.98,5.9509]
[1752470915578,5.9499,168.01,167.98,5.9509]
[1752470915779,5.9499,168.01,168.0,3.63]
[1752470916273,5.20320666,168.05,167.94,5.20320666]
[1752470916481,3.37,168.04,167.95,3.63]
[1752470916777,3.37,168.04,167.99,3.63]
[1752470916975,3.37,168.01,167.99,3.63]
[1752470917682,9.32,168.01,167.99,3.63]
[1752470917984,3.37,168.04,168.0,3.63]
[1752470918177,5.9498,168.02,168.0,3.63]
[1752470918374,9.3198,168.02,168.0,3.63]
[1752470918775,5.9492,168.03,168.01,3.63]
[1752470919074,5.9492,168.03,167.9,10.15509892]